Cogmind - Beta 15 --- EXPLORER MODE // 2025.07.24 @ 13:44:01 Player: 690412 Result: Destroyed by G-34 Mercenary with Small Laser Performance ------------- Evolutions (0) 0 Regions Visited (2) 400 Robots Destroyed (0) 0 Value Destroyed (0) 0 Prototype IDs (0) 0 Alien Tech Used (0) 0 Bonus (0) 0 TOTAL SCORE: 400 Bonus ------- None Cogmind --------- Core Integrity 0/250 Matter 300/300 Energy 100/100 System Corruption 0% Temperature Cool (15) Movement Core (350) Ox6 Location -10/Mines Parts ------- > --- POWER (1) -------- (None) > --- PROPULSION (2) --- (None) > --- UTILITY (3) ------ Large Storage Unit Core Shielding > --- WEAPON (2) ------- (None) > --- INVENTORY (15) --- Wheel Medium Matter Pod (100) Seismic Detector Targeting Computer Tractor Beam Grenade Launcher Peak State ------------ > --- POWER ------------ Light Ion Engine > --- PROPULSION ------- Aluminum Leg Aluminum Leg > --- UTILITY ---------- Large Storage Unit Terrain Scanner Core Shielding > --- WEAPON ----------- Light Assault Rifle Mining Laser > --- INVENTORY -------- Medium Matter Pod Tractor Beam Grenade Launcher [Rating: 8] Favorites ----------- Power Light Ion Engine Engine Light Ion Engine Propulsion Aluminum Leg Leg Aluminum Leg Utility Terrain Scanner Device Terrain Scanner Storage Large Storage Unit Protection Core Shielding Weapon Light Assault Rifle Ballistic Gun Light Assault Rifle Special Weapon Mining Laser Build | -11 -10 -10 ------- Run | Yrd Mat Min Slots Evolved 1 | . 1 . Power . | . . . Propulsion . | . . . Utility 1 | . 1 . Weapon . | . . . Parts Attached 10 | 6 2 2 Power 2 | 1 . 1 Engine 2 | 1 . 1 Core . | . . . Reactor . | . . . Propulsion 2 | 2 . . Treads . | . . . Leg 2 | 2 . . Wheel . | . . . Hover . | . . . Flight . | . . . Utility 4 | 2 2 . Device 1 | 1 . . Storage 2 | 1 1 . Processor . | . . . Hackware . | . . . Protection 1 | . 1 . Artifact . | . . . Weapon 2 | 1 . 1 Energy Gun . | . . . Energy Cannon . | . . . Ballistic Gun 1 | 1 . . Ballistic Cannon . | . . . Launcher . | . . . Special Weapon 1 | . . 1 Impact Weapon . | . . . Slashing Weapon . | . . . Piercing Weapon . | . . . Special Melee Weapon . | . . . Unidentified Prototypes . | . . . Parts Lost 6 | . . 6 Power 1 | . . 1 Propulsion 2 | . . 2 Utility 1 | . . 1 Weapon 2 | . . 2 Highest Loss Streak 6 | . . 6 To Critical Strikes . | . . . Average Backups 3 | . 2 5 Power . | . . . Propulsion . | . . . Utility 2 | . 1 3 Weapon . | . . 1 Tool/Special . | . . . Unused Backups 8 | . 1 7 Power . | . . . Propulsion 2 | . . 2 Utility 5 | . 1 4 Weapon 1 | . . 1 Tool/Special . | . . . Average Slot Usage (%) 91 | . 84 97 Engine 11 | . 12 11 Leg 24 | . 25 24 Device 11 | . 12 11 Storage 11 | . 11 12 Protection 10 | . 9 12 Ballistic Gun 11 | . 12 11 Special Weapon 6 | . . 10 Peak Build Rating 8 | 6 7 8 Average Rating 6 | 2 6 7 On Entrance 4 | . 6 7 Naked Turns . | . . . Heaviest Build 27 | 15 26 27 Greatest Support 20 | 20 20 20 Greatest Overweight (x) 4 | 4 1 1 Average Overweight (x) . | 1 . 1 Largest Inventory Capacity 15 | 10 15 15 Average Capacity 12 | 8 11 15 Most Carried 8 | 4 4 8 Average Carried 3 | . 2 5 Final Capacity 15 | 10 15 15 Final Carried 6 | 1 4 6 Class Distribution -------------------- 100% | Hacker-Mutant Dominant Class ---------------- Hacker-Mutant | -10/Materials Hacker-Mutant | -10/Mines Resources | -11 -10 -10 ----------- Run | Yrd Mat Min Matter Collected 396 | 113 155 128 Remotely . | . . . Salvage Created . | . . . Parts . | . . . Haulers Intercepted . | . . . Recyclers Shooed . | . . . Parts Field Recycled . | . . . Retrieved Matter . | . . . Parts Self-Destructed . | . . . Prevented . | . . . Kills | -11 -10 -10 ------- Run | Yrd Mat Min Combat Hostiles Destroyed . | . . . Classes Destroyed . | . . . Best Kill Streak . | . . . Combat Bots Only . | . . . Max Kills in Single Turn . | . . . Gunslinging . | . . . Exploded . | . . . Melee . | . . . Uniques/NPCs Destroyed . | . . . Combat | -11 -10 -10 -------- Run | Yrd Mat Min Hostile Shots Fired 127 | . 33 94 Missed 31 | . 7 24 Hits 96 | . 26 70 Projectile 96 | . 26 70 Critical Strikes 1 | . . 1 Actively Blocked 1 | . . 1 Damage Taken 715 | . 120 595 Core 252 | . 16 236 Absorbed by Shields . | . . . Redirected to Shielding 47 | . 3 44 Ignored by Resistances 453 | . 89 364 Core Remaining (%) 100 | 100 . . Volleys Fired 2 | . . 2 Largest 1 | . . 1 Hottest 20 | . . 20 Shots Fired 2 | . . 2 Gun 2 | . . 2 Cannon . | . . . Launcher . | . . . Special . | . . . Kinetic 2 | . . 2 Thermal . | . . . Explosive . | . . . Electromagnetic . | . . . Robot Hit Streak 2 | . . 2 Robot Miss Streak . | . . . Penetration Max . | . . . Secondary Targets . | . . . Shots Hit Robots 2 | . . 2 Core Hits . | . . . Critical Kills . | . . . Critical Parts Destroyed . | . . . Critical Strikes . | . . . Melee Attacks . | . . . Impact . | . . . Slashing . | . . . Piercing . | . . . Sneak Attacks . | . . . Combat Hostiles . | . . . Follow-up Attacks . | . . . Damage Inflicted 8 | 6 . 2 Guns . | . . . Cannons . | . . . Explosions . | . . . Melee . | . . . Ramming 8 | 6 . 2 Kinetic . | . . . Thermal . | . . . Explosive . | . . . Electromagnetic . | . . . Impact . | . . . Slashing . | . . . Piercing . | . . . Highest Corruption . | . . . Average Corruption . | . . . Corruption Purged . | . . . Corruption Blocked . | . . . Overload Shots . | . . . Overflow Damage . | . . . Projectiles . | . . . Explosions . | . . . Melee . | . . . Knockbacks . | . . . Impact . | . . . Kinetic . | . . . Secondary . | . . . Self-Inflicted Damage . | . . . Shots . | . . . Rammed . | . . . Targets Rammed 2 | 1 . 1 Kicked 2 | 1 . 1 Crushed . | . . . Highest Temperature 9 | . . 9 Average Temperature 7 | . . 7 Received Heat Transfer 534 | . . 534 Siege Activations . | . . . Martial Activations . | . . . Shielding Activations . | . . . Robots Disrupted . | . . . Combat Hostiles . | . . . Robots Corrupted . | . . . Combat Hostiles . | . . . Parts Fried . | . . . Impact Corruptions . | . . . Robots Melted . | . . . Combat Hostiles . | . . . Parts Melted . | . . . Heat Transferred . | . . . Parts Sabotaged . | . . . Parts Stolen . | . . . Parts Stripped . | . . . Power Chain Reactions . | . . . Alert | -11 -10 -10 ------- Run | Yrd Mat Min Maximum Alert Level . | . . . Low Security (%) 100 | 100 100 100 Level 1 . | . . . Level 2 . | . . . Level 3 . | . . . Level 4 . | . . . Level 5 . | . . . High Security . | . . . Max Security . | . . . Peak Influence . | . . . Initial . | . . . Average . | . . . Influence Increases . | . . . Influence Decreases . | . . . Squads Dispatched . | . . . Investigation . | . . . Extermination . | . . . Reinforcement . | . . . Assault . | . . . Garrison . | . . . Intercept . | . . . Searches Triggered . | . . . Construction Impeded . | . . . Haulers Reinforced . | . . . Active Scanning Responses . | . . . Cargo Convoy Interrupts . | . . . Stealth | -11 -10 -10 --------- Run | Yrd Mat Min Distress Signals . | . . . Communications Jammed . | . . . Distress Signals . | . . . Times Spotted 5 | . 3 2 Peak Tracking Total 2 | . 2 2 Tactical Retreats . | . . . Traps | -11 -10 -10 ------- Run | Yrd Mat Min Traps Triggered . | . . . Indirectly . | . . . Trap Hack Attempts . | . . . Triggered . | . . . Disarmed . | . . . Reprogrammed . | . . . Reused . | . . . Traps Extracted . | . . . Installed . | . . . Triggered . | . . . Machines | -11 -10 -10 ---------- Run | Yrd Mat Min Machines Disabled . | . . . Max in Single Turn . | . . . Machines Repaired . | . . . Machines Dismantled . | . . . Machines Sabotaged . | . . . Overloaded Fab Kills . | . . . Hacking | -11 -10 -10 --------- Run | Yrd Mat Min Machines Accessed 2 | . 2 . Terminals 1 | . 1 . Fabricators . | . . . Repair Stations . | . . . Recycling Units 1 | . 1 . Scanalyzers . | . . . Garrison Access . | . . . Total Hacks 2 | . 2 . Successful 2 | . 2 . Failed . | . . . Catastrophic . | . . . Database Lockouts . | . . . Manual . | . . . Terminals 1 | . 1 . Fabricators . | . . . Repair Stations . | . . . Recycling Units 1 | . 1 . Scanalyzers . | . . . Garrison Access . | . . . Terminal Hacks 1 | . 1 . Record 1 | . 1 . Fabricator Hacks . | . . . Repair Station Hacks . | . . . Recycling Unit Hacks 1 | . 1 . Retrieve Matter 1 | . 1 . Scanalyzer . | . . . Garrison Access Hacks . | . . . Unauthorized Hacks . | . . . Terminals . | . . . Fabricators . | . . . Repair Stations . | . . . Recycling Units . | . . . Scanalyzers . | . . . Garrison Access . | . . . Data Cores Recovered . | . . . Used . | . . . Hacking Detections . | . . . Full Trace Events . | . . . Feedback Events . | . . . Feedback Blocked . | . . . Robot Schematics Acquired . | . . . Robots Built . | . . . Authchips . | . . . Time . | . . . Total Robot Build Rating . | . . . Part Schematics Acquired . | . . . Parts Built . | . . . Authchips . | . . . Time . | . . . Total Part Build Rating . | . . . Parts Repaired . | . . . Time . | . . . Parts Recycled . | . . . Recycled Matter . | . . . Retrieved Matter . | . . . Retrieved Components . | . . . Parts Scanalyzed . | . . . Part Schematics Acquired . | . . . Parts Damaged . | . . . Bothacking | -11 -10 -10 ------------ Run | Yrd Mat Min Used RIF Installer . | . . . Robots Hacked . | . . . Non-combat . | . . . Combat . | . . . Robot Hacks Applied . | . . . Relay Couplers Released . | . . . Fabnet Peak Effective % . | . . . Robots Rewired . | . . . Allies Hacked . | . . . Hacks Repelled . | . . . Allies | -11 -10 -10 -------- Run | Yrd Mat Min Total Allies . | . . . Largest Group . | . . . Highest-Rated Group . | . . . Highest-Rated Ally . | . . . Total Orders . | . . . Ally Attacks . | . . . Total Damage . | . . . Kills . | . . . Allies Corrupted . | . . . Allies Melted . | . . . Intel | -11 -10 -10 ------- Run | Yrd Mat Min Active Infowar (turns) 6462 | 382 2506 3574 Terrain 6462 | 382 2506 3574 Robot Analysis Total . | . . . Derelict Logs Recovered . | . . . Drone Launches . | . . . Drone Recoveries . | . . . Exploration | -11 -10 -10 ------------- Run | Yrd Mat Min Turns Passed 8206 | 2063 2506 3637 Spaces Moved 223 | 37 114 72 Core 18 | 18 . . Treads . | . . . Legs 205 | 19 114 72 Wheels . | . . . Hover . | . . . Flight . | . . . Fastest Speed 50 | 50 120 190 Average Speed 149 | 140 126 190 Slowest Speed 250 | 250 190 190 Overloaded Moves . | . . . Propulsion Burnouts . | . . . Robots Hopped . | . . . Potential Cave-ins . | . . . Cave-ins Triggered . | . . . Exploration Rate (%) 17 | 7 27 19 Regions Visited 2 Branch Regions 1 Pre-discovered Areas . | . . . Known Exits Taken 2 | 1 1 . Unknown Exits Taken . | . . . Scrap Searched . | . . . Spaces Dug . | . . . Terrain Destroyed . | . . . Melee . | . . . Projectile . | . . . AOE . | . . . Terrain Rammed . | . . . Walls Destroyed . | . . . Machines Disabled . | . . . Actions | -11 -10 -10 --------- Run | Yrd Mat Min Total 8097 | 2048 2478 3571 Wait 7840 | 1998 2355 3487 Move 221 | 36 113 72 Hop . | . . . Pick Up 18 | 7 6 5 Fast Attach . | . . . Attach 10 | 6 2 2 Detach . | . . . Swap . | . . . Drop 4 | . 2 2 Fire 2 | . . 2 Melee . | . . . Ram . | . . . Kick 2 | 1 . 1 Crush . | . . . Escape Stasis . | . . . Rewire . | . . . Trap . | . . . Miscellaneous . | . . . Route ------- -11/Scrapyard -10/Materials -10/Mines History --------- Turn | Location | Event 874 | -11/Scrapyard | Identified exit to Materials 874 | -11/Scrapyard | Discovered exit to Materials (range 16) 2064 | -11/Scrapyard | Entered Materials 2064 | -10/Materials | Evolved 1 slot: Utility x1 2065 | -10/Materials | Build established: Hacker-Mutant 2065 | -10/Materials | Met a group of wandering Federalists 2854 | -10/Materials | Identified exit to Mines 2854 | -10/Materials | Discovered exit to Mines (range 6) 4570 | -10/Materials | Entered Mines 8176 | -10/Mines | Core integrity fell below 50% 8196 | -10/Mines | Core integrity fell below 20% 8207 | -10/Mines | Destroyed by G-34 Mercenary with Small Laser Last Messages --------------- mode in the options menu, or press Ctrl-F7, for more detailed HUD info. 05410_ Acquired 68 matter. 05676_ Acquired Seismic Detector. 05791_ K-01 Serf collects debris. 06412_ Acquired Aluminum Leg. 06634_ Acquired Targeting Computer. 07058_ Acquired Wheel. 07121_ Acquired 51 matter. 07351_ Acquired Lgt. Ion Engine. 07936_ Dropped Lgt. Ion Engine. 08089_ Dropped Aluminum Leg. 08107_ Kicked T-07 Excavator. 08122_ Acquired 9 matter. 08137_ Mining Laser destroyed. 08144_ Terrain Scanner destroyed. 08150_ Aluminum Leg destroyed. 08167_ Lgt. Ion Engine destroyed. 08185_ Aluminum Leg destroyed. 08197_ Lgt. Assault Rifle destroyed. Map ----- +----------------------------------------------------+ | | | | | | | | | | | | | | | | | | | ?????????????????????????????????????????????????? | | ?????????????????????????????????????????????????? | | ?????????????????????????????????????????????????? | | ??????????????????????#??????????????????????????? | | ?????????????????????????????????????????????????? | | ?????????????????????????????????????????????????? | | ?????????????????????????????????????????????????? | | ???????????????????????#?????????????????????????? | | ????????????????????????????#????????????????????? | | ????????????????#???#????????????????????????????? | | ?????????????#????? ????????????????????????????? | | ????????" ??#???#? ????????????????????????????? | | ??????""" ##?#?### ##??????????????????????????? | | ????????"? #?###### ##??? ???? ?????????????????? | | ???????? ???#?#??### #???? ???? ##?????????????? | | ???###?? ?? ? ?###?# ####### #?????????????? | | ? ### ??? ?# ? ??## ## @ #????????????? | | ?? ??#?# #### #???# ## ### #????????????? | | ##??##?? ###### #### ##g #?????? ?????????? | | ## ?? ? #? # % g #??#??????? ?????????? | | ##?########## ## # #??#? ??????????????????? | | #?########? # #### ###### #????????????????????? | | ## #### ### ## ? ????????????????????????? | | ### ## ### ????#?? ?????????????????? | | ###*## ##??## ??#??? ??????????????? | | = ##??#? ???????????????????? | | # #?#???#???????????????????? | | # ######## ##???????????????????????? | | ### ? ?# ###??? ??????????????????? | | ## ? ? ## ###??#????????????????????? | | ## ? #???########??#? ???????????????????? | | # ## ?##?#???#????#?####?????????????????????? | | ## #####?###?#####?###??? ????????????????????? | | #### #####????####?###????? ????????????????????? | | #### ####?##?######## ?????????????????????????? | | #### ###?###??###?# ???????????????????????????? | | ##?# ############# ? ??????????????????????????? | | #### ###?## ? ?????????????????????????????? | | #### ####??? ?? ? ??????????????????????????????? | | #### ####?#? ??#????????????????????????????????? | | ### #####??????????????????????????????????????? | +----------------------------------------------------+ Best States ------------- Heat Dissipation 25 Energy Generation 10 Energy Capacity 125 Matter Stores 300 Matter Capacity 300 Sight Range 16 Terrain Scan Range 14 Terrain Scan Density 10 Resistance: KI 35 Resistance: TH 35 Resistance: EX 35 Resistance: EM 35 Resistance: I 35 Resistance: S 35 Resistance: P 35 Core Shielding 20 Evasion (%) 55 Offensive Hacking 20 Item Schematics ----------------- None Robot Schematics ------------------ None Fabricated ------------ Nothing Repaired ---------- Nothing Alien Tech Used ----------------- None Achievements -------------- None Challenges ------------ None Game ------ Seed BiometalXenonDisintegrator Manual? 0 Play Time 00:20:17 Cumulative 23.1 hours Start 2025.07.24 @ 13:25:01 End 2025.07.24 @ 13:44:01 Sessions 1 Manual Loads 0 Difficulty Explorer Special Mode None Game No. 14 Rogue 0 Adventurer 10 Explorer 4 Win Type - Total 0 Types 0/0/0/0/0/0/0/0/0/0 Lore% 9 Gallery% 16 Achievement% 16 Wizard Run 0 Options --------- Layout 1 ASCII 1 Keyboard 0 Movement Numpad Keybinds 0 Fullscreen 1 Font 16/Proggy Map View 50x40 Zoom Use 36% Tactical HUD 1 Map Filters NONE Filters NONE Steam SD RUN: bbe187a5-09e7-46ca-96b6-238f35076edd